bitfinex/quotes_ETHUSD_20250518
["timestamp","ask_amount","ask_price","bid_price","bid_amount"]
[1747604433879,5.90436445,2426.6,2425.8,0.01978788]
[1747604434078,5.90436445,2426.6,2425.7,11.81219316]
[1747604434079,4.12121932,2426.5,2426.0,0.55]
[1747604434283,4.12134252,2426.4,2426.2,0.55]
[1747604434693,4.12134252,2426.4,2426.3,1.3009]
[1747604435113,4.12134252,2426.4,2426.3,0.55]
[1747604437609,4.12134252,2426.4,2426.3,10.29]
[1747604437924,4.12201154,2426.0,2425.9,9.74]
[1747604438105,4.12286126,2425.5,2425.4,27.552]
[1747604438305,12.12286126,2425.5,2425.4,9.74]
[1747604438507,0.7521,2424.9,2423.8,4.87651256]
[1747604438831,4.12490203,2424.3,2424.2,9.739]
[1747604439138,4.12558273,2423.9,2423.8,17.803]
[1747604439427,4.12558273,2423.9,2423.8,27.4]
[1747604440231,4.12558273,2423.9,2423.8,27.95]
[1747604440406,4.12558273,2423.9,2423.8,27.4]
[1747604441006,12.12558273,2423.9,2423.8,27.4]
[1747604441230,12.12558273,2423.9,2423.1,9.596]
[1747604441231,4.12677451,2423.2,2423.1,17.803]
[1747604441531,4.12677451,2423.2,2423.1,27.4]
[1747604441838,4.12677451,2423.2,2423.1,17.803]
[1747604442041,4.12677451,2423.2,2423.1,27.402]
[1747604442342,12.12677451,2423.2,2423.1,27.402]
[1747604442508,12.12677451,2423.2,2423.1,17.803]
[1747604442708,12.87887451,2423.2,2423.1,17.803]
[1747604442928,4.12796044,2422.6,2422.3,17.806]
[1747604443135,4.12796697,2422.5,2422.4,9.599]
[1747604443514,4.12813738,2422.4,2422.3,17.806]
[1747604443723,4.12632178,2423.5,2422.3,27.405]
[1747604443904,4.12782111,2422.6,2422.0,4.128751]
[1747604444240,4.12798433,2422.5,2422.1,9.599]
[1747604444637,4.12776134,2422.7,2422.1,9.599]
[1747604444841,0.308847,2422.5,2422.1,9.599]
[1747604445010,0.1,2425.2,2422.3,0.8208]
[1747604445213,1.2938531,2425.7,2425.0,4.12364664]
[1747604445214,2.748828,2425.7,2425.0,4.12364664]
[1747604445409,1.2938531,2425.7,2425.1,13.32135582]
[1747604445651,1.2938531,2425.7,2425.1,1.33213558]
[1747604445825,1.2938531,2425.7,2425.2,14.9433649]
[1747604446162,1.2938531,2425.7,2425.2,14.94325319]
[1747604446621,1.2938531,2425.7,2425.2,10.82]
[1747604446806,1.2938531,2425.7,2425.2,14.94331316]
[1747604447006,1.2938531,2425.7,2425.2,10.82]
[1747604447206,1.2938531,2425.7,2425.5,4.12270146]
[1747604447410,1.2938531,2425.7,2425.6,4.12269129]
[1747604447644,3.25634113,2426.3,2425.2,16.02529002]
[1747604447645,8.0,2426.2,2425.7,4.12242024]
[1747604447811,3.25634113,2426.3,2425.8,10.819]
[1747604448159,8.0,2426.2,2425.9,10.819]
[1747604448745,3.25634113,2426.3,2425.9,10.819]
[1747604449047,3.25634113,2426.3,2426.0,4.12196679]
[1747604449349,0.7569,2427.2,2426.1,4.12184163]
[1747604449555,0.21514934,2427.5,2426.1,4.12184163]
[1747604449556,0.21514934,2427.5,2426.8,4.12060164]
[1747604449757,0.7569,2427.6,2426.9,10.819]
[1747604449958,11.6999,2427.6,2426.9,10.819]
[1747604450161,0.7569,2427.6,2426.9,10.819]
[1747604450467,10.938,2427.8,2427.1,4.12002593]
[1747604450624,15.04785291,2427.9,2427.1,4.12002593]
[1747604450832,4.11897684,2427.8,2427.1,4.12002593]
[1747604451356,4.11897684,2427.8,2426.9,14.93945823]
[1747604451357,4.11896256,2427.8,2426.9,10.819]
[1747604451557,12.11928023,2427.7,2427.1,4.12010193]
[1747604451727,10.91,2427.8,2427.1,4.12010193]
[1747604451943,4.11844652,2428.1,2427.3,4.1197526]
[1747604452142,4.11879103,2427.9,2427.0,0.01972372]
[1747604452338,4.11908565,2427.8,2427.0,4.12014647]
[1747604452584,8.0,2428.1,2426.9,10.819]
[1747604452893,4.11908191,2427.8,2427.1,4.12003826]
[1747604453205,4.11907614,2427.8,2427.2,10.816]
[1747604453398,8.0,2427.7,2427.3,10.816]
[1747604453695,4.11816064,2428.3,2427.3,10.816]
[1747604453696,0.97194883,2428.5,2427.5,4.1193029]
[1747604453874,4.11810731,2428.3,2427.5,4.1193029]
[1747604454195,6.17183774,2428.4,2427.5,18.5801]
[1747604454405,4.11803459,2428.4,2427.7,4.11911519]
[1747604454598,4.11812548,2428.3,2427.7,4.11911519]
[1747604455171,8.0,2428.3,2427.7,4.66908833]
[1747604455557,4.11818071,2428.3,2427.7,4.66908833]
[1747604455994,4.11805879,2428.4,2427.5,18.5801]
[1747604456186,0.7569,2428.5,2427.6,0.55]
[1747604456391,4.11814874,2428.3,2427.8,0.55]
[1747604456602,12.87466871,2428.5,2427.8,0.55]
[1747604456603,4.11836828,2428.2,2427.8,0.55]
[1747604456774,8.0,2428.3,2427.8,4.11894935]
[1747604457000,12.11811744,2428.3,2427.8,0.55]
[1747604457606,4.11837195,2428.2,2427.8,0.55]
[1747604457814,12.11818089,2428.3,2427.8,0.55]
[1747604458135,12.11814907,2428.3,2427.8,0.55]
[1747604458433,4.1184693,2428.1,2427.6,0.55]
[1747604458596,12.11818049,2428.3,2427.6,0.55]
[1747604458793,4.11843982,2428.2,2427.7,0.55]
[1747604458990,4.11773109,2428.6,2427.7,0.55]
[1747604459207,4.11757836,2428.7,2427.7,2.46301]
[1747604459492,4.33150908,2429.3,2428.3,0.55]
[1747604459693,4.11658159,2429.2,2428.5,0.55]
[1747604459936,4.1171563,2428.9,2428.7,0.55]
[1747604460107,4.11723135,2428.9,2428.7,0.55]
[1747604460309,1.78334682,2429.4,2428.7,0.55]
[1747604460695,4.11687867,2429.1,2428.7,0.55]
[1747604461641,4.11709004,2428.9,2428.8,10.808]
[1747604461847,4.11709004,2428.9,2428.8,0.55]
[1747604462004,1.78334682,2429.4,2428.9,0.55]
[1747604462204,4.11654975,2429.3,2428.9,0.55]
[1747604462434,4.11670636,2429.2,2428.9,0.55]
[1747604462745,4.11687421,2429.1,2428.9,0.55]
[1747604462941,4.11692054,2429.0,2428.9,0.55]
[1747604463141,4.11692054,2429.0,2428.9,10.806]
[1747604463640,4.11692054,2429.0,2428.9,10.738878]
[1747604463799,4.11745508,2428.7,2428.5,0.55]
[1747604463994,4.11641213,2429.3,2428.4,17.792]
[1747604464200,4.1177006,2428.6,2428.5,11.356]
[1747604464837,4.1177006,2428.6,2428.5,10.806]
[1747604465299,12.11776816,2428.5,2427.9,10.806]
[1747604465505,4.11861614,2428.0,2427.9,10.806]
[1747604465931,4.11847367,2428.1,2427.7,17.788]
[1747604465932,4.11895543,2427.8,2427.7,17.788]
[1747604466133,4.11895543,2427.8,2427.7,28.592]
[1747604466850,4.36,2428.4,2427.7,28.592]
[1747604467147,4.11759861,2428.6,2428.0,0.55]
[1747604467326,4.11810642,2428.4,2428.0,0.55]
[1747604467647,12.11744861,2428.7,2427.9,0.55]
[1747604467805,4.11762851,2428.6,2427.8,0.55]
[1747604468005,4.11842281,2428.2,2427.8,0.55]
[1747604468205,4.11848432,2428.1,2427.8,0.55]
[1747604468439,8.0,2428.5,2427.8,0.55]
[1747604468607,4.118539,2428.1,2427.8,0.55]
[1747604469007,4.11788035,2428.5,2428.0,0.55]
[1747604469205,4.11789469,2428.5,2428.0,0.55]
[1747604469444,4.11832156,2428.2,2427.9,0.55]
[1747604469645,4.11832156,2428.2,2428.1,10.804]
[1747604470202,4.1181227,2428.3,2428.1,10.804]
[1747604470203,4.11810731,2428.3,2428.2,0.55]
[1747604470444,4.11853675,2428.1,2427.7,17.788]
[1747604470741,4.11862476,2428.0,2427.8,11.354]
[1747604470940,4.11878578,2427.9,2427.8,11.354]
[1747604471117,4.11878578,2427.9,2427.8,0.55]
[1747604471311,4.11873485,2428.0,2427.8,11.354]
[1747604471533,4.11878578,2427.9,2427.8,11.354]
[1747604471727,4.11946446,2427.5,2427.4,10.804]
[1747604471927,4.12014338,2427.1,2426.3,18.5792]
[1747604472165,4.12133201,2426.4,2426.3,18.5792]
[1747604472486,4.12133201,2426.4,2426.3,28.86839013]
[1747604472662,4.12133201,2426.4,2426.3,18.06539013]
[1747604473151,12.12052281,2426.9,2426.3,18.06539013]
[1747604473343,4.12094244,2426.7,2426.3,17.784]
[1747604473639,4.12133201,2426.4,2426.3,17.784]
[1747604474271,12.12167175,2426.2,2426.1,10.803]
[1747604474657,4.12058951,2426.9,2426.2,4.12151495]
[1747604474862,8.0,2427.3,2426.5,0.55]
[1747604475073,4.11963417,2427.4,2426.6,0.55]
[1747604475271,4.11933242,2427.6,2427.0,4.67021171]
[1747604475441,4.11912683,2427.7,2427.2,0.55]
[1747604475663,4.11881093,2427.9,2427.4,0.55]
[1747604475975,4.11941439,2427.6,2427.5,10.562]
[1747604476681,4.11861614,2428.0,2427.4,10.562]
[1747604476682,12.11946446,2427.5,2427.4,10.562]
[1747604476856,12.11946446,2427.5,2427.0,0.55]
[1747604476857,4.12014338,2427.1,2427.0,0.55]
[1747604477053,4.12014338,2427.1,2427.0,11.112]
[1747604477261,8.0,2427.4,2427.0,11.112]
[1747604477453,0.8216,2427.7,2427.0,11.112]
[1747604477454,4.12014338,2427.1,2427.0,11.112]
[1747604477844,4.12014338,2427.1,2427.0,11.113]
[1747604478050,4.12004267,2427.2,2427.0,11.113]
[1747604478678,4.12004267,2427.2,2427.1,0.28311786]
[1747604482766,4.12014338,2427.1,2427.0,11.113]
[1747604484671,4.12014338,2427.1,2426.6,0.826]
[1747604484672,4.12075433,2426.8,2426.6,0.826]
[1747604484872,4.12075433,2426.8,2426.7,0.8332147]
[1747604485077,4.12075433,2426.8,2426.7,11.3972147]
[1747604485576,4.12075433,2426.8,2426.7,0.2832147]
[1747604485759,4.12049962,2426.9,2426.7,10.564]
[1747604485964,8.0,2427.0,2426.5,17.787]
[1747604486166,4.12099233,2426.6,2426.5,17.787]
[1747604486388,4.12099233,2426.6,2426.5,28.351]
[1747604486691,4.12149004,2426.4,2425.8,17.79]
[1747604486895,4.12218145,2425.9,2425.8,17.79]
[1747604487067,4.12218145,2425.9,2425.8,28.354]
[1747604487398,12.12320125,2425.3,2425.2,1.13239396]
[1747604488176,12.12320125,2425.3,2425.2,11.69639396]
[1747604489499,12.12320125,2425.3,2425.2,10.564]
[1747604489683,4.12298564,2425.5,2425.3,0.55]
[1747604489870,4.12276921,2425.6,2425.3,0.55]
[1747604490999,8.0,2425.7,2425.3,0.55]
[1747604491203,4.12297893,2425.5,2425.3,0.55]
[1747604491501,8.7782,2425.9,2425.3,0.55]
[1747604491668,4.12303125,2425.4,2425.3,0.55]
[1747604492498,4.12303125,2425.4,2425.3,11.117]
[1747604492695,4.12303125,2425.4,2425.0,17.79]
[1747604492696,4.12354129,2425.1,2425.0,17.79]
[1747604493095,4.12354129,2425.1,2425.0,28.358]
[1747604500512,4.12354129,2425.1,2425.0,28.037]
[1747604502428,4.12331581,2425.3,2425.0,28.037]
[1747604502619,8.0,2425.5,2425.1,0.55]
[1747604502791,4.12312043,2425.4,2425.1,0.55]
[1747604503122,8.0,2425.5,2425.1,0.55]
[1747604503419,4.12202133,2426.0,2425.1,0.55]
[1747604503629,4.12284087,2425.6,2425.1,0.55]
[1747604503920,4.122877,2425.5,2425.1,4.55505133]
[1747604504142,4.12252133,2425.7,2425.3,0.55]
[1747604504316,8.0,2425.8,2425.3,0.55]
[1747604504503,4.12260349,2425.7,2425.3,0.55]
[1747604505023,4.1227058,2425.6,2425.3,0.55]
[1747604505388,4.12247958,2425.8,2425.4,10.798]
[1747604505722,0.8311,2426.1,2425.5,0.55]
[1747604506020,4.12228236,2425.9,2425.5,0.55]
[1747604506207,4.1213369,2426.4,2425.5,2.04209662]
[1747604506417,4.12218603,2425.9,2425.5,0.55]
[1747604507294,4.12201154,2426.0,2425.5,4.67276577]
[1747604507720,4.12192484,2426.1,2425.6,0.55]
[1747604507919,4.12204223,2426.0,2425.6,0.55]
[1747604508424,4.12228317,2425.9,2425.5,0.55]
[1747604508722,8.0,2426.3,2425.7,0.55]
[1747604508723,4.12193476,2426.1,2425.7,0.55]
[1747604509510,12.12162059,2426.3,2425.8,0.8095]
[1747604509511,4.12173186,2426.2,2425.8,0.8095]
[1747604509712,4.12184163,2426.1,2425.8,0.8095]
[1747604509913,4.12201154,2426.0,2425.9,10.248]
[1747604510222,4.12187095,2426.1,2425.8,10.248]
[1747604510223,4.12218145,2425.9,2425.8,10.248]
[1747604510624,12.12218145,2425.9,2425.8,10.248]
[1747604511808,4.12235138,2425.8,2425.7,10.247]
[1747604514627,5.9056982,2425.8,2425.7,10.247]
[1747604514920,5.9056982,2425.8,2425.7,10.53169051]
[1747604518531,1.78334682,2425.8,2425.7,11.08169051]
[1747604521053,1.78334682,2425.8,2425.7,15.20421184]
[1747604521263,1.78334682,2425.8,2425.7,17.48553302]
[1747604521628,1.78334682,2425.8,2425.7,13.36301169]
[1747604521942,1.78334682,2425.8,2425.7,11.84259051]
[1747604522160,1.78334682,2426.3,2425.8,0.55]
[1747604522453,1.78334682,2426.3,2426.0,0.55]
[1747604523626,1.78334682,2426.3,2426.2,0.55]
[1747604523826,4.12147521,2426.4,2426.2,10.796]
[1747604524311,5.90459145,2426.5,2426.2,10.796]
[1747604524511,1.78334682,2427.2,2426.4,0.55]
[1747604524760,1.78334682,2427.2,2426.3,1.06399051]
[1747604524761,1.78334682,2427.2,2426.7,4.67065509]
[1747604524944,1.78334682,2427.2,2426.9,0.55]
[1747604525112,1.78334682,2427.2,2427.0,9.942]
[1747604525427,1.78334682,2427.2,2427.1,0.55]
[1747604525623,1.78334682,2427.2,2427.1,0.83469051]
[1747604526041,1.78334682,2427.2,2427.1,4.95483389]
[1747604526240,1.78334682,2427.7,2427.4,0.55]
[1747604526565,1.78334682,2427.9,2427.5,9.941]
[1747604526745,4.11929477,2427.6,2427.5,10.491]
[1747604527052,4.11929477,2427.6,2427.5,9.941]
[1747604527433,4.1196986,2427.4,2427.0,0.8229]
[1747604527628,1.78334682,2427.9,2427.5,0.55]
[1747604527827,1.78334682,2427.9,2427.6,10.491]
[1747604528025,1.78334682,2427.9,2427.7,4.66900019]
[1747604528245,4.11830026,2428.2,2427.7,4.66908405]
[1747604528441,1.78334682,2428.3,2427.7,0.55]
[1747604528650,1.78334682,2428.3,2428.0,0.55]
[1747604528859,1.78334682,2428.3,2428.1,9.939]
[1747604529432,4.11827691,2428.2,2428.1,10.489]
[1747604529636,5.90152725,2428.3,2428.1,9.939]
[1747604529841,4.11827691,2428.2,2428.1,9.939]
[1747604530036,4.11827691,2428.2,2427.0,8.0]
[1747604530037,4.11997363,2427.2,2427.1,17.794]
[1747604530367,8.0,2427.1,2426.4,9.939]
[1747604530544,2.59324682,2427.2,2426.4,9.939]
[1747604530545,4.12116216,2426.5,2426.4,9.939]
[1747604530751,4.12133201,2426.4,2426.3,27.733]
[1747604531058,12.12133201,2426.4,2426.3,17.794]
[1747604531268,12.12201154,2426.0,2425.9,1.13239396]
[1747604531957,0.31592308,2426.2,2425.6,9.939]
[1747604532159,4.12210546,2426.0,2425.6,12.7123]
[1747604532479,4.12227979,2425.9,2425.6,2.7733]
[1747604532647,4.12246724,2425.8,2425.7,9.939]
[1747604535139,4.12246724,2425.8,2425.3,9.94]
[1747604535140,8.0,2425.6,2425.3,9.94]
[1747604535345,4.12303125,2425.4,2425.3,9.94]
[1747604535942,4.123834,2425.0,2424.8,17.796]
[1747604536148,4.123834,2425.0,2424.9,9.94]
[1747604536633,4.12272371,2425.6,2424.9,9.94]
[1747604536834,4.12349402,2425.2,2424.9,9.94]
[1747604538566,0.8066,2425.8,2425.0,0.55]
[1747604538738,4.12294821,2425.5,2425.0,0.55]
[1747604539280,4.12307704,2425.4,2425.1,9.942]
[1747604539440,4.12311709,2425.4,2425.2,9.942]
[1747604539836,4.1231313,2425.4,2425.2,9.942]
[1747604540242,4.12320125,2425.3,2425.2,9.942]
[1747604542838,12.12320125,2425.3,2425.2,9.942]
[1747604543040,4.12439165,2424.6,2424.0,0.62579627]
[1747604543272,4.12609341,2423.6,2423.5,0.8113]
[1747604543438,4.12637663,2423.5,2423.2,11.88569396]
[1747604543650,4.12660421,2423.3,2423.2,11.88569396]
[1747604543871,4.12660421,2423.3,2423.2,11.07439396]
[1747604544248,8.0,2423.7,2423.2,11.07439396]
[1747604544461,12.12562515,2423.9,2423.3,4.12659467]
[1747604544777,4.1256321,2423.9,2423.2,13.96183336]
[1747604544977,4.12532068,2424.1,2423.5,4.90284925]
[1747604545178,4.1255233,2424.0,2423.5,0.7766]
[1747604545379,4.12558362,2423.9,2423.5,0.7766]
[1747604545980,4.12558362,2423.9,2423.6,0.55]
[1747604546276,4.12562578,2423.9,2423.8,0.55]
[1747604548749,4.12562578,2423.9,2423.7,9.943]
[1747604548750,4.12575294,2423.8,2423.7,9.943]
[1747604550486,5.90909976,2423.8,2423.7,9.943]
[1747604554287,4.92862275,2423.7,2423.3,0.55]
[1747604554459,4.92862275,2423.7,2423.3,10.498]
[1747604554993,4.12602275,2423.7,2423.3,10.498]
[1747604555887,4.12643393,2423.4,2423.3,10.498]
[1747604556090,1.78334682,2423.4,2423.1,17.8]
[1747604556282,4.12677451,2423.2,2423.1,17.8]
[1747604557100,4.12721723,2423.0,2422.8,9.647]
[1747604557256,4.12728548,2422.9,2422.8,9.647]
[1747604557982,4.12728548,2422.9,2422.8,10.197]
[1747604559300,4.12728548,2422.9,2422.3,17.81759664]
[1747604559301,4.12758983,2422.8,2422.3,27.46659664]
[1747604559473,4.12782686,2422.6,2422.3,27.46659664]
[1747604559803,4.12728548,2422.9,2422.3,27.46659664]
[1747604559979,4.12796697,2422.5,2422.4,0.55]
[1747604560498,4.12813738,2422.4,2422.3,27.46659664]
[1747604561013,1.78334682,2423.0,2422.5,0.55]
[1747604561194,10.11,2423.3,2422.6,0.55]
[1747604561195,4.12670751,2423.3,2422.6,0.55]
[1747604561416,1.78334682,2423.4,2423.1,4.12691165]
[1747604561708,13.76693281,2423.7,2423.3,0.55]
[1747604561903,4.1260004,2423.7,2423.3,0.55]
[1747604562102,4.125824,2423.8,2423.3,4.67658656]
[1747604562274,4.12570334,2423.9,2423.3,4.67660421]
[1747604562471,4.12577506,2423.8,2423.3,4.67660421]
[1747604563586,8.0,2424.0,2423.5,0.55]
[1747604563908,4.12590908,2423.8,2423.3,0.55]
[1747604564091,4.12590908,2423.8,2423.5,0.55]
[1747604564272,4.12594842,2423.7,2423.5,0.55]
[1747604564606,4.12609341,2423.6,2423.5,0.55]
[1747604564909,4.12599271,2423.7,2423.5,0.55]
[1747604565608,4.12609341,2423.6,2423.5,0.55]
[1747604565807,4.12644125,2423.4,2423.3,0.55]
[1747604566104,4.12644125,2423.4,2423.3,10.2]
[1747604566307,4.12644125,2423.4,2423.3,9.65]
[1747604566812,12.12644125,2423.4,2423.3,9.65]
[1747604566978,4.12745303,2422.9,2422.8,9.65]
[1747604567393,4.1276262,2422.7,2422.6,9.65]
[1747604568312,12.1276262,2422.7,2422.6,9.65]
[1747604569379,4.12796697,2422.5,2422.4,27.468]
[1747604569580,12.12796697,2422.5,2422.4,27.468]
[1747604570712,12.12881915,2422.0,2421.9,0.00559664]
[1747604570902,22.52741915,2422.0,2421.9,0.00559664]
[1747604572014,4.12951948,2421.6,2421.4,0.00559664]
[1747604572212,4.1296216,2421.6,2421.5,9.652]
[1747604572508,4.12950115,2421.6,2421.5,9.652]
[1747604572712,0.7829,2422.4,2421.5,9.652]
[1747604572899,4.9111124,2422.4,2421.8,4.12914502]
[1747604573210,10.4249,2423.2,2421.9,19.844]
[1747604573419,4.12703753,2423.1,2422.6,0.55]
[1747604573619,9.642,2423.8,2422.9,0.7774]
[1747604573819,4.12639638,2423.5,2423.1,0.55]
[1747604573990,4.12639638,2423.5,2423.0,9.654]
[1747604573991,4.12638739,2423.5,2423.2,9.654]
[1747604574186,9.642,2423.7,2423.2,9.654]
[1747604574390,4.12677451,2423.2,2423.0,0.55]
[1747604574586,4.12666518,2423.3,2423.1,10.204]
[1747604574785,4.12677451,2423.2,2423.1,9.654]
[1747604575120,4.1266855,2423.3,2423.1,9.654]
[1747604575890,9.642,2423.7,2423.1,9.654]
[1747604576188,4.1264047,2423.5,2423.1,9.654]
[1747604576686,4.12660421,2423.3,2423.2,0.28545612]
[1747604577016,4.12652966,2423.4,2423.2,9.93845612]
[1747604577421,4.12636108,2423.5,2423.2,9.93845612]
[1747604577793,12.12614627,2423.6,2423.3,0.28545612]
[1747604577992,9.643,2423.9,2423.3,0.28545612]
[1747604578191,13.76845962,2424.0,2423.4,0.55]
[1747604578495,4.12568813,2423.9,2423.4,3.25156427]
[1747604578905,9.95856008,2424.3,2423.4,3.25156427]
[1747604579104,4.12582841,2423.8,2423.6,0.55]
[1747604579398,4.12582841,2423.8,2423.7,10.203]
[1747604579909,4.12582841,2423.8,2423.7,10.48845612]
[1747604580113,4.12582841,2423.8,2423.7,9.93845612]
[1747604580990,4.12582841,2423.8,2423.7,9.653]
[1747604581223,4.12575294,2423.8,2423.7,9.653]
[1747604583092,12.12575294,2423.8,2423.3,0.55]
[1747604583429,4.12643393,2423.4,2423.3,9.651]
[1747604583799,12.12643393,2423.4,2423.3,9.651]
[1747604585034,4.12711514,2423.0,2422.8,10.19]
[1747604585228,4.12711514,2423.0,2422.9,0.28578507]
[1747604585624,12.12711514,2423.0,2422.9,0.28578507]
[1747604586324,4.12728548,2422.9,2422.8,10.19]
[1747604587368,4.12728548,2422.9,2422.8,9.64]
[1747604587544,12.12728548,2422.9,2422.8,9.64]
[1747604587705,12.12713845,2423.0,2422.5,27.46]
[1747604587706,4.12779658,2422.6,2422.5,27.46]
[1747604588052,4.12768418,2422.7,2422.5,27.46]
[1747604588646,4.12732917,2422.9,2422.6,0.55]
[1747604588951,4.12715717,2423.0,2422.6,0.55]
[1747604589317,4.12703312,2423.1,2422.6,7.89156945]
[1747604589521,4.12648962,2423.4,2422.6,3.76378897]
[1747604589734,4.12654008,2423.4,2423.0,0.55]
[1747604589934,4.12654008,2423.4,2423.1,9.641]
[1747604593164,4.12654008,2423.4,2423.1,10.4553]
[1747604594058,4.12654008,2423.4,2423.2,0.55]
[1747604594758,4.1263554,2423.5,2423.2,0.55]
[1747604595136,4.12599314,2423.7,2423.2,0.55]
[1747604595334,0.7644,2424.6,2423.9,4.12547543]
[1747604595535,2.81828259,2425.2,2424.2,0.55]
[1747604595739,2.05388259,2425.2,2424.7,4.67415731]
[1747604596061,2.05388259,2425.2,2425.0,0.55]
[1747604596269,2.05388259,2425.2,2425.0,4.6736116]
[1747604596559,2.05388259,2425.2,2425.1,1.3147]
[1747604598526,2.05388259,2425.2,2425.1,5.43824129]
[1747604598852,0.31047773,2426.1,2425.4,0.55]
[1747604599046,4.12227114,2425.9,2425.6,0.55]
[1747604599254,4.12236619,2425.8,2425.6,0.55]
[1747604599929,4.12224861,2425.9,2425.6,0.55]
[1747604600343,4.12252133,2425.7,2425.6,0.55]
[1747604600558,4.12167175,2426.2,2425.2,9.632]
[1747604600559,9.632,2425.9,2425.2,0.55]
[1747604600765,4.12320125,2425.3,2425.2,0.55]
[1747604601128,12.12320125,2425.3,2425.2,0.55]
[1747604601462,8.0,2425.2,2424.8,17.82]
[1747604601660,4.12388139,2424.9,2424.8,9.635]
[1747604602260,13.75288139,2424.9,2424.8,9.635]
[1747604602427,14.51508139,2424.9,2424.8,9.635]
[1747604602952,22.51508139,2424.9,2424.8,9.635]
[1747604603148,4.12456176,2424.5,2424.4,10.185]
[1747604603354,4.12456176,2424.5,2424.4,9.635]
[1747604603660,4.12507218,2424.2,2424.1,17.811]
[1747604603865,4.12507218,2424.2,2424.1,27.446]
[1747604605777,4.12477851,2424.4,2424.2,0.55]
[1747604605941,4.12437052,2424.7,2424.2,4.1414]
[1747604606136,4.12354129,2425.1,2424.2,4.1414]
[1747604606334,4.12439028,2424.7,2424.2,4.1414]
[1747604606675,4.12439484,2424.6,2424.2,4.1414]
[1747604607238,4.12456303,2424.5,2424.2,4.1414]
[1747604608070,4.12440216,2424.6,2424.2,4.1414]
[1747604608273,4.12485503,2424.4,2424.2,1.3418]
[1747604608471,4.12490203,2424.3,2424.2,1.3418]
[1747604610366,4.12471068,2424.5,2424.2,1.3418]
[1747604611195,4.12475135,2424.4,2424.2,1.3418]
[1747604611695,4.12490203,2424.3,2424.2,0.55]
[1747604612414,4.12449399,2424.6,2424.1,27.446]
[1747604612561,4.12252133,2425.7,2424.7,4.12418624]
[1747604612763,4.12252133,2425.7,2425.1,0.55]
[1747604612958,9.623,2426.2,2425.1,0.55]
[1747604612959,0.7681,2426.4,2425.7,0.55]
[1747604613202,4.12193331,2426.1,2425.9,0.55]
[1747604613878,4.12201154,2426.0,2425.9,0.55]
[1747604615305,4.12150187,2426.3,2425.7,9.621]
[1747604615508,4.12235138,2425.8,2425.7,10.171]
[1747604615880,4.12235138,2425.8,2425.7,9.621]
[1747604616078,4.12269129,2425.6,2425.5,9.62]
[1747604618716,12.12269129,2425.6,2425.5,9.62]
[1747604618892,4.12320125,2425.3,2425.2,17.811]
[1747604619293,4.12337126,2425.2,2425.1,9.619]
[1747604619492,4.12354129,2425.1,2425.0,9.619]
[1747604619715,4.12354129,2425.1,2425.0,10.169]
[1747604620715,4.1235728,2425.1,2424.5,17.806]
[1747604620883,4.12388139,2424.9,2424.8,9.619]
[1747604624718,4.12388139,2424.9,2424.5,18.356]
[1747604624719,4.12434585,2424.7,2424.5,27.425]
[1747604624913,4.12436528,2424.7,2424.5,17.806]
[1747604625113,4.12439165,2424.6,2424.5,18.356]
[1747604625303,4.12456176,2424.5,2423.7,18.6305]
[1747604625501,4.12558273,2423.9,2423.8,11.48205]
[1747604625918,4.12575294,2423.8,2423.7,17.807]
[1747604626119,4.12592317,2423.7,2423.6,9.619]
[1747604626730,4.12592317,2423.7,2423.6,10.45588559]
[1747604627528,4.12592317,2423.7,2423.6,9.90588559]
[1747604627827,4.12592317,2423.7,2423.6,9.619]
[1747604628031,4.17750089,2423.7,2423.6,9.619]
[1747604629002,12.17750089,2423.7,2423.6,9.619]
[1747604629331,12.12592317,2423.7,2423.6,9.619]
[1747604631534,13.90926999,2423.7,2423.6,9.619]
[1747604632343,4.12581487,2423.8,2423.6,10.169]
[1747604632519,1.78334682,2424.3,2423.7,1.5669]
[1747604632708,10.68449047,2425.1,2424.2,1.3597]
[1747604632909,4.12400583,2424.9,2424.4,0.55]
[1747604633232,4.12352817,2425.2,2424.4,0.55]
[1747604633541,4.1243284,2424.7,2424.5,9.622]
[1747604633739,4.12407927,2424.8,2424.6,0.55]
[1747604634120,4.12420429,2424.8,2424.6,0.55]
[1747604634310,4.12422155,2424.7,2424.6,0.55]
[1747604634505,8.0,2425.0,2424.4,10.172]
[1747604634737,4.12426886,2424.7,2424.4,9.622]
[1747604634960,4.12456176,2424.5,2424.4,9.622]
[1747604635250,4.12422155,2424.7,2424.4,9.622]
[1747604635827,4.12456176,2424.5,2424.4,9.622]
[1747604637209,4.12430275,2424.7,2424.4,9.622]
[1747604637406,5.90764957,2424.7,2424.5,0.55]
[1747604637845,1.78334682,2424.7,2424.5,0.55]
[1747604638660,1.78334682,2424.7,2424.5,1.3022]
[1747604639353,1.78334682,2424.7,2424.5,4.58821011]
[1747604640414,1.78334682,2424.7,2424.5,8.71276939]
[1747604640614,9.78334682,2425.2,2424.5,8.71276939]
[1747604640814,13.90676031,2425.2,2424.8,0.55]
[1747604641011,1.78334682,2425.2,2425.0,0.55]
[1747604641252,1.78334682,2425.2,2425.1,1.3022]
[1747604641712,1.78334682,2425.6,2425.2,4.67330374]
[1747604641960,4.12241658,2425.8,2425.3,18.36]
[1747604642244,4.12225743,2425.9,2425.5,0.55]
[1747604642543,4.12243764,2425.8,2425.4,0.55]
[1747604642745,1.78334682,2426.1,2425.5,9.62]
[1747604643043,12.12229637,2425.9,2425.5,9.62]
[1747604643245,4.12238499,2425.8,2425.5,9.62]
[1747604643446,8.0,2425.9,2425.3,17.81]
[1747604643749,4.12286126,2425.5,2425.4,0.55]
[1747604643936,4.12456176,2424.5,2424.4,27.428]